Department Family,Entity,Date,Expense Type,Expense Area,Supplier,Transaction Number,AP Amount,Description,Supplier Postcode,Purchase Invoice Number
Department of Health,NHS North East Lincolnshire CCG,31/03/2021,Miscellaneous Expenditure (L9),PROGRAMME PROJECTS,HEALTHY LIVES TOGETHER LLP,35844101,"71,940.00",,WH17BP,10
Department of Health,NHS North East Lincolnshire CCG,31/03/2021,Clinical&Medical-Clinical Other,PATIENT TRANSPORT,THAMES AMBULANCE SERVICE LTD,35858561,"87,553.72",https://nww.einvoice-prod.sbs.nhs.uk:8179/invoicepdf/25608965-7c57-5aac-b2b7-50957e21cb73,LN6 3AH,22215
Department of Health,NHS North East Lincolnshire CCG,31/03/2021,Clinical&Medical-Clinical Other,PATIENT TRANSPORT,THAMES AMBULANCE SERVICE LTD,35858567,"28,302.56",https://nww.einvoice-prod.sbs.nhs.uk:8179/invoicepdf/68c2bf8e-2d68-50a4-8baf-182cd323199d,LN6 3AH,22217
Department of Health,NHS North East Lincolnshire CCG,31/03/2021,Clinical&Medical-Clinical Other,COMMUNITY SERVICES,CARE PLUS GROUP LTD,35858584,"66,757.42",https://nww.einvoice-prod.sbs.nhs.uk:8179/invoicepdf/97e518a4-67fb-586e-b0c9-94c6bdbd98ac,DN32 7DH,16253
Department of Health,NHS North East Lincolnshire CCG,31/03/2021,Cont Care-Learning Disab(<65),CHC ADULT FULLY FUNDED,NORTH EAST LINCOLNSHIRE COUNCIL,35899321,"30,735.61",,DN31 1HU,S1785724
Department of Health,NHS North East Lincolnshire CCG,31/03/2021,Clinical&Medical-Commercial Sector,LEARNING DIFFICULTIES,ELYSIUM HEALTHCARE LTD,35899601,"38,556.28",https://nww.einvoice-prod.sbs.nhs.uk:8179/invoicepdf/aed840ed-f5d5-506a-91bc-6f43d9c8c294,WD6 1JN,HLH00931
Department of Health,NHS North East Lincolnshire CCG,31/03/2021,C&M-PMS Contract Value,PRC DELEGATED CO-COMMISSIONING,FIELDHOUSE MEDICAL GROUP,35936197,"96,694.49",BABALP,DN34 4GB,KHU000042839
Department of Health,NHS North East Lincolnshire CCG,31/03/2021,C&M-PMS PCN DES Participation,PRC DELEGATED CO-COMMISSIONING,FIELDHOUSE MEDICAL GROUP,35936197,"1,825.05",PARTIP,DN34 4GB,KHU000042839
Department of Health,NHS North East Lincolnshire CCG,31/03/2021,C&M-PMS Prem Actual Rent,PRC DELEGATED CO-COMMISSIONING,FIELDHOUSE MEDICAL GROUP,35936197,"195,212.00",RENT,DN34 4GB,KHU000042839
Department of Health,NHS North East Lincolnshire CCG,31/03/2021,C&M-PMS QOF Aspiration,PRC DELEGATED CO-COMMISSIONING,FIELDHOUSE MEDICAL GROUP,35936197,"10,036.31",QUASPP,DN34 4GB,KHU000042839
Department of Health,NHS North East Lincolnshire CCG,31/03/2021,C&M-PMS Contract Value,PRC DELEGATED CO-COMMISSIONING,BEACON MEDICAL,35938343,"102,173.04",BABALP,DN35 8EB,KHU000042817
Department of Health,NHS North East Lincolnshire CCG,31/03/2021,C&M-PMS List Size Adjustment,PRC DELEGATED CO-COMMISSIONING,BEACON MEDICAL,35938343,58.26,LISTAP,DN35 8EB,KHU000042817
Department of Health,NHS North East Lincolnshire CCG,31/03/2021,C&M-PMS PCN DES Participation,PRC DELEGATED CO-COMMISSIONING,BEACON MEDICAL,35938343,"1,928.45",PARTIP,DN35 8EB,KHU000042817
Department of Health,NHS North East Lincolnshire CCG,31/03/2021,C&M-PMS Prem Actual Rent,PRC DELEGATED CO-COMMISSIONING,BEACON MEDICAL,35938343,"43,995.00",RENT,DN35 8EB,KHU000042817
Department of Health,NHS North East Lincolnshire CCG,31/03/2021,C&M-PMS Prem Rates,PRC DELEGATED CO-COMMISSIONING,BEACON MEDICAL,35938343,"1,313.00",RANDRP,DN35 8EB,KHU000042817
Department of Health,NHS North East Lincolnshire CCG,31/03/2021,C&M-PMS QOF Aspiration,PRC DELEGATED CO-COMMISSIONING,BEACON MEDICAL,35938343,"10,941.21",QUASPP,DN35 8EB,KHU000042817
Department of Health,NHS North East Lincolnshire CCG,31/03/2021,C&M-PMS Contract Value,PRC DELEGATED CO-COMMISSIONING,DR GG DE & PARTNERS,35938347,"34,220.45",BABALP,DN312BH,KHU000042821
Department of Health,NHS North East Lincolnshire CCG,31/03/2021,C&M-PMS List Size Adjustment,PRC DELEGATED CO-COMMISSIONING,DR GG DE & PARTNERS,35938347,789.27,LISTAP,DN312BH,KHU000042821
Department of Health,NHS North East Lincolnshire CCG,31/03/2021,C&M-PMS PCN DES Participation,PRC DELEGATED CO-COMMISSIONING,DR GG DE & PARTNERS,35938347,645.89,PARTIP,DN312BH,KHU000042821
Department of Health,NHS North East Lincolnshire CCG,31/03/2021,C&M-PMS Prem Actual Rent,PRC DELEGATED CO-COMMISSIONING,DR GG DE & PARTNERS,35938347,"37,173.60",RENT,DN312BH,KHU000042821
Department of Health,NHS North East Lincolnshire CCG,31/03/2021,C&M-PMS QOF Aspiration,PRC DELEGATED CO-COMMISSIONING,DR GG DE & PARTNERS,35938347,"3,555.36",QUASPP,DN312BH,KHU000042821
Department of Health,NHS North East Lincolnshire CCG,31/03/2021,C&M-PMS DES Extended Hours Access,PRC DELEGATED CO-COMMISSIONING,DR R MATHEWS,35938350,"-11,358.33",EXTHDP,DN313AE,KHU000042824
Department of Health,NHS North East Lincolnshire CCG,31/03/2021,C&M-PMS GP Statutory Levy,PRC DELEGATED CO-COMMISSIONING,DR R MATHEWS,35938350,-570.37,STATL,DN313AE,KHU000042824
Department of Health,NHS North East Lincolnshire CCG,31/03/2021,C&M-PMS List Size Adjustment,PRC DELEGATED CO-COMMISSIONING,DR R MATHEWS,35938350,-445.65,LISTAP,DN313AE,KHU000042824
Department of Health,NHS North East Lincolnshire CCG,31/03/2021,C&M-PMS Out of Hours Opt Outs,PRC DELEGATED CO-COMMISSIONING,DR R MATHEWS,35938350,"-1,584.69",APMOOH,DN313AE,KHU000042824
Department of Health,NHS North East Lincolnshire CCG,31/03/2021,C&M-PMS PCN DES Clinical Director,PRC DELEGATED CO-COMMISSIONING,DR R MATHEWS,35938350,"-5,655.67",CLINDP,DN313AE,KHU000042824
Department of Health,NHS North East Lincolnshire CCG,31/03/2021,C&M-PMS PCN DES PCN support,LOCAL ENHANCED SERVICES,DR R MATHEWS,35938350,"-11,750.00",PCNSUP,DN313AE,KHU000042824
Department of Health,NHS North East Lincolnshire CCG,31/03/2021,C&M-PMS Voluntary Levy,PRC DELEGATED CO-COMMISSIONING,DR R MATHEWS,35938350,-32.30,VOLL,DN313AE,KHU000042824
Department of Health,NHS North East Lincolnshire CCG,31/03/2021,ME-PMS GP Pension EEs-PMS,PRC DELEGATED CO-COMMISSIONING,DR R MATHEWS,35938350,"-5,437.50",SUPCEE,DN313AE,KHU000042824
Department of Health,NHS North East Lincolnshire CCG,31/03/2021,ME-PMS GP Pension ERs Adjs - PMS,PRC DELEGATED CO-COMMISSIONING,DR R MATHEWS,35938350,"-5,392.50",SUPCER,DN313AE,KHU000042824
Department of Health,NHS North East Lincolnshire CCG,31/03/2021,C&M- PCN DES CARE HOME PREMIUM,PRC DELEGATED CO-COMMISSIONING,DR R MATHEWS,35938351,"6,750.00",CHOMPP,DN313AE,KHU000042825
Department of Health,NHS North East Lincolnshire CCG,31/03/2021,C&M-PMS Contract Value,PRC DELEGATED CO-COMMISSIONING,DR R MATHEWS,35938351,"33,653.00",BABALP,DN313AE,KHU000042825
Department of Health,NHS North East Lincolnshire CCG,31/03/2021,C&M-PMS DES Extended Hours Access,PRC DELEGATED CO-COMMISSIONING,DR R MATHEWS,35938351,"22,716.66",EXTHDP,DN313AE,KHU000042825
Department of Health,NHS North East Lincolnshire CCG,31/03/2021,C&M-PMS PCN DES Clinical Director,PRC DELEGATED CO-COMMISSIONING,DR R MATHEWS,35938351,"11,311.34",CLINDP,DN313AE,KHU000042825
Department of Health,NHS North East Lincolnshire CCG,31/03/2021,C&M-PMS PCN DES PCN support,LOCAL ENHANCED SERVICES,DR R MATHEWS,35938351,"23,500.00",PCNSUP,DN313AE,KHU000042825
Department of Health,NHS North East Lincolnshire CCG,31/03/2021,C&M-PMS PCN DES Participation,PRC DELEGATED CO-COMMISSIONING,DR R MATHEWS,35938351,635.18,PARTIP,DN313AE,KHU000042825
Department of Health,NHS North East Lincolnshire CCG,31/03/2021,C&M-PMS Prem Actual Rent,PRC DELEGATED CO-COMMISSIONING,DR R MATHEWS,35938351,"32,473.92",RENT,DN313AE,KHU000042825
Department of Health,NHS North East Lincolnshire CCG,31/03/2021,C&M-PMS QOF Aspiration,PRC DELEGATED CO-COMMISSIONING,DR R MATHEWS,35938351,"3,118.15",QUASPP,DN313AE,KHU000042825
Department of Health,NHS North East Lincolnshire CCG,31/03/2021,C&M- PCN DES CARE HOME PREMIUM,PRC DELEGATED CO-COMMISSIONING,HUMBERVIEW SURGERY,35938353,"2,625.00",CHOMPA,DN313AE,KHU000042827
Department of Health,NHS North East Lincolnshire CCG,31/03/2021,C&M-APMS Contract Value,PRC DELEGATED CO-COMMISSIONING,HUMBERVIEW SURGERY,35938353,"15,482.82",APMADD,DN313AE,KHU000042827
Department of Health,NHS North East Lincolnshire CCG,31/03/2021,C&M-APMS DES Extended Hours Access,PRC DELEGATED CO-COMMISSIONING,HUMBERVIEW SURGERY,35938353,"9,477.21",ZEXTA,DN313AE,KHU000042827
Department of Health,NHS North East Lincolnshire CCG,31/03/2021,C&M-APMS List Size Adjustment,PRC DELEGATED CO-COMMISSIONING,HUMBERVIEW SURGERY,35938353,357.87,LISTAA,DN313AE,KHU000042827
Department of Health,NHS North East Lincolnshire CCG,31/03/2021,C&M-APMS PCN DES Clinical Director,PRC DELEGATED CO-COMMISSIONING,HUMBERVIEW SURGERY,35938353,"4,709.21",CLINDA,DN313AE,KHU000042827
Department of Health,NHS North East Lincolnshire CCG,31/03/2021,C&M-APMS PCN DES PCN support,LOCAL ENHANCED SERVICES,HUMBERVIEW SURGERY,35938353,"9,797.25",PCNSUA,DN313AE,KHU000042827
Department of Health,NHS North East Lincolnshire CCG,31/03/2021,C&M-APMS Prem Actual Rent,PRC DELEGATED CO-COMMISSIONING,HUMBERVIEW SURGERY,35938353,"13,829.76",RENTA,DN313AE,KHU000042827
Department of Health,NHS North East Lincolnshire CCG,31/03/2021,C&M-APMS Prem Rates,PRC DELEGATED CO-COMMISSIONING,HUMBERVIEW SURGERY,35938353,399.00,RANDRA,DN313AE,KHU000042827
Department of Health,NHS North East Lincolnshire CCG,31/03/2021,C&M-PMS PCN DES Participation,PRC DELEGATED CO-COMMISSIONING,HUMBERVIEW SURGERY,35938353,292.23,PARTIP,DN313AE,KHU000042827
Department of Health,NHS North East Lincolnshire CCG,31/03/2021,C&M-PMS QOF Aspiration,PRC DELEGATED CO-COMMISSIONING,HUMBERVIEW SURGERY,35938353,"1,561.55",QUASPP,DN313AE,KHU000042827
Department of Health,NHS North East Lincolnshire CCG,31/03/2021,C&M-PMS Contract Value,PRC DELEGATED CO-COMMISSIONING,LITTLEFIELD,35938355,"42,845.17",BABALP,DN34 4GB,KHU000042829
Department of Health,NHS North East Lincolnshire CCG,31/03/2021,C&M-PMS List Size Adjustment,PRC DELEGATED CO-COMMISSIONING,LITTLEFIELD,35938355,568.24,LISTAP,DN34 4GB,KHU000042829
Department of Health,NHS North East Lincolnshire CCG,31/03/2021,C&M-PMS PCN DES Participation,PRC DELEGATED CO-COMMISSIONING,LITTLEFIELD,35938355,808.68,PARTIP,DN34 4GB,KHU000042829
Department of Health,NHS North East Lincolnshire CCG,31/03/2021,C&M-PMS Prem Actual Rent,PRC DELEGATED CO-COMMISSIONING,LITTLEFIELD,35938355,"38,245.50",RENT,DN34 4GB,KHU000042829
Department of Health,NHS North East Lincolnshire CCG,31/03/2021,C&M-PMS QOF Aspiration,PRC DELEGATED CO-COMMISSIONING,LITTLEFIELD,35938355,"3,947.82",QUASPP,DN34 4GB,KHU000042829
Department of Health,NHS North East Lincolnshire CCG,31/03/2021,C&M-PMS Contract Value,PRC DELEGATED CO-COMMISSIONING,RAJ MEDICAL CENTRE,35938357,"47,909.54",BABALP,DN34 5LP,KHU000042831
Department of Health,NHS North East Lincolnshire CCG,31/03/2021,C&M-PMS PCN DES Participation,PRC DELEGATED CO-COMMISSIONING,RAJ MEDICAL CENTRE,35938357,904.26,PARTIP,DN34 5LP,KHU000042831
Department of Health,NHS North East Lincolnshire CCG,31/03/2021,C&M-PMS QOF Aspiration,PRC DELEGATED CO-COMMISSIONING,RAJ MEDICAL CENTRE,35938357,"4,996.39",QUASPP,DN34 5LP,KHU000042831
Department of Health,NHS North East Lincolnshire CCG,31/03/2021,C&M-PMS DES Extended Hours Access,PRC DELEGATED CO-COMMISSIONING,ROXTON PRACTICE,35938360,"-4,487.87",EXTHDP,DN40 1JW,KHU000042834
Department of Health,NHS North East Lincolnshire CCG,31/03/2021,C&M-PMS GP Statutory Levy,PRC DELEGATED CO-COMMISSIONING,ROXTON PRACTICE,35938360,"-4,279.78",STATL,DN40 1JW,KHU000042834
Department of Health,NHS North East Lincolnshire CCG,31/03/2021,C&M-PMS List Size Adjustment,PRC DELEGATED CO-COMMISSIONING,ROXTON PRACTICE,35938360,"-29,204.14",LISTAP,DN40 1JW,KHU000042834
Department of Health,NHS North East Lincolnshire CCG,31/03/2021,C&M-PMS Out of Hours Opt Outs,PRC DELEGATED CO-COMMISSIONING,ROXTON PRACTICE,35938360,"-13,628.91",APMOOH,DN40 1JW,KHU000042834
Department of Health,NHS North East Lincolnshire CCG,31/03/2021,C&M-PMS PCN DES Clinical Director,PRC DELEGATED CO-COMMISSIONING,ROXTON PRACTICE,35938360,"-2,234.65",CLINDP,DN40 1JW,KHU000042834
Department of Health,NHS North East Lincolnshire CCG,31/03/2021,C&M-PMS PCN DES PCN support,LOCAL ENHANCED SERVICES,ROXTON PRACTICE,35938360,"-4,642.63",PCNSUP,DN40 1JW,KHU000042834
Department of Health,NHS North East Lincolnshire CCG,31/03/2021,C&M-PMS Voluntary Levy,PRC DELEGATED CO-COMMISSIONING,ROXTON PRACTICE,35938360,-134.63,VOLL,DN40 1JW,KHU000042834
Department of Health,NHS North East Lincolnshire CCG,31/03/2021,ME - PMS TPS Added Years Adj EEs,PRC DELEGATED CO-COMMISSIONING,ROXTON PRACTICE,35938360,-434.88,URLS,DN40 1JW,KHU000042834
Department of Health,NHS North East Lincolnshire CCG,31/03/2021,ME-PMS GP Pension EEs-PMS,PRC DELEGATED CO-COMMISSIONING,ROXTON PRACTICE,35938360,"-14,810.86",SUPCEE,DN40 1JW,KHU000042834
Department of Health,NHS North East Lincolnshire CCG,31/03/2021,ME-PMS GP Pension ERs Adjs - PMS,PRC DELEGATED CO-COMMISSIONING,ROXTON PRACTICE,35938360,"-15,416.28",SUPCER,DN40 1JW,KHU000042834
Department of Health,NHS North East Lincolnshire CCG,31/03/2021,C&M- PCN DES CARE HOME PREMIUM,PRC DELEGATED CO-COMMISSIONING,ROXTON PRACTICE,35938361,"3,097.50",CHOMPP,DN40 1JW,KHU000042835
Department of Health,NHS North East Lincolnshire CCG,31/03/2021,C&M-PMS Contract Value,PRC DELEGATED CO-COMMISSIONING,ROXTON PRACTICE,35938361,"252,858.52",BABALP,DN40 1JW,KHU000042835
Department of Health,NHS North East Lincolnshire CCG,31/03/2021,C&M-PMS DES Extended Hours Access,PRC DELEGATED CO-COMMISSIONING,ROXTON PRACTICE,35938361,"8,975.74",EXTHDP,DN40 1JW,KHU000042835
Department of Health,NHS North East Lincolnshire CCG,31/03/2021,C&M-PMS DES Learn Dsblty Hlth Chk,PRC DELEGATED CO-COMMISSIONING,ROXTON PRACTICE,35938361,"4,060.00",LEARNP,DN40 1JW,KHU000042835
Department of Health,NHS North East Lincolnshire CCG,31/03/2021,C&M-PMS List Size Adjustment,PRC DELEGATED CO-COMMISSIONING,ROXTON PRACTICE,35938361,"32,737.40",LISTAP,DN40 1JW,KHU000042835
Department of Health,NHS North East Lincolnshire CCG,31/03/2021,C&M-PMS PCN DES Clinical Director,PRC DELEGATED CO-COMMISSIONING,ROXTON PRACTICE,35938361,"4,469.30",CLINDP,DN40 1JW,KHU000042835
Department of Health,NHS North East Lincolnshire CCG,31/03/2021,C&M-PMS PCN DES PCN support,LOCAL ENHANCED SERVICES,ROXTON PRACTICE,35938361,"9,285.26",PCNSUP,DN40 1JW,KHU000042835
Department of Health,NHS North East Lincolnshire CCG,31/03/2021,C&M-PMS PCN DES Participation,PRC DELEGATED CO-COMMISSIONING,ROXTON PRACTICE,35938361,"5,077.61",PARTIP,DN40 1JW,KHU000042835
Department of Health,NHS North East Lincolnshire CCG,31/03/2021,C&M-PMS Prem Actual Rent,PRC DELEGATED CO-COMMISSIONING,ROXTON PRACTICE,35938361,"226,846.69",RENT,DN40 1JW,KHU000042835
Department of Health,NHS North East Lincolnshire CCG,31/03/2021,C&M-PMS Prem Rates,PRC DELEGATED CO-COMMISSIONING,ROXTON PRACTICE,35938361,"1,022.00",RANDRP,DN40 1JW,KHU000042835
Department of Health,NHS North East Lincolnshire CCG,31/03/2021,C&M-PMS QOF Aspiration,PRC DELEGATED CO-COMMISSIONING,ROXTON PRACTICE,35938361,"21,075.27",QUASPP,DN40 1JW,KHU000042835
Department of Health,NHS North East Lincolnshire CCG,31/03/2021,C&M-APMS Contract Value,PRC DELEGATED CO-COMMISSIONING,OPEN DOOR,35938363,"33,687.18",APMADD,DN32 7DL,KHU000042837
Department of Health,NHS North East Lincolnshire CCG,31/03/2021,C&M-APMS List Size Adjustment,PRC DELEGATED CO-COMMISSIONING,OPEN DOOR,35938363,"1,023.00",LISTAA,DN32 7DL,KHU000042837
Department of Health,NHS North East Lincolnshire CCG,31/03/2021,C&M-APMS QOF Aspiration,PRC DELEGATED CO-COMMISSIONING,OPEN DOOR,35938363,68.07,ASPIRA,DN32 7DL,KHU000042837
Department of Health,NHS North East Lincolnshire CCG,31/03/2021,C&M-PMS PCN DES Participation,PRC DELEGATED CO-COMMISSIONING,OPEN DOOR,35938363,244.50,PARTIP,DN32 7DL,KHU000042837
Department of Health,NHS North East Lincolnshire CCG,31/03/2021,C&M-PMS QOF Aspiration,PRC DELEGATED CO-COMMISSIONING,OPEN DOOR,35938363,"1,086.62",QUASPP,DN32 7DL,KHU000042837
Department of Health,NHS North East Lincolnshire CCG,31/03/2021,C&M-PMS Contract Value,PRC DELEGATED CO-COMMISSIONING,DR AP KUMAR,35938365,"29,696.83",BABALP,DN31 3AE,KHU000042841
Department of Health,NHS North East Lincolnshire CCG,31/03/2021,C&M-PMS PCN DES Participation,PRC DELEGATED CO-COMMISSIONING,DR AP KUMAR,35938365,560.51,PARTIP,DN31 3AE,KHU000042841
Department of Health,NHS North East Lincolnshire CCG,31/03/2021,C&M-PMS Prem Actual Rent,PRC DELEGATED CO-COMMISSIONING,DR AP KUMAR,35938365,"16,302.72",RENT,DN31 3AE,KHU000042841
Department of Health,NHS North East Lincolnshire CCG,31/03/2021,C&M-PMS QOF Aspiration,PRC DELEGATED CO-COMMISSIONING,DR AP KUMAR,35938365,"3,076.63",QUASPP,DN31 3AE,KHU000042841
Department of Health,NHS North East Lincolnshire CCG,31/03/2021,C&M-PMS Contract Value,PRC DELEGATED CO-COMMISSIONING,CLEE MEDICAL CENTRE,35938367,"115,232.51",BABALP,DN35 7XE,KHU000042843
Department of Health,NHS North East Lincolnshire CCG,31/03/2021,C&M-PMS PCN DES Participation,PRC DELEGATED CO-COMMISSIONING,CLEE MEDICAL CENTRE,35938367,"2,174.94",PARTIP,DN35 7XE,KHU000042843
Department of Health,NHS North East Lincolnshire CCG,31/03/2021,C&M-PMS Prem Actual Rent,PRC DELEGATED CO-COMMISSIONING,CLEE MEDICAL CENTRE,35938367,"44,062.50",RENT,DN35 7XE,KHU000042843
Department of Health,NHS North East Lincolnshire CCG,31/03/2021,C&M-PMS QOF Aspiration,PRC DELEGATED CO-COMMISSIONING,CLEE MEDICAL CENTRE,35938367,"14,074.83",QUASPP,DN35 7XE,KHU000042843
Department of Health,NHS North East Lincolnshire CCG,31/03/2021,C&M-PMS Contract Value,PRC DELEGATED CO-COMMISSIONING,CHANTRY HEALTH GROUP,35938369,"51,586.02",BABALP,DN31 1QZ,KHU000042845
Department of Health,NHS North East Lincolnshire CCG,31/03/2021,C&M-PMS DES Learn Dsblty Hlth Chk,PRC DELEGATED CO-COMMISSIONING,CHANTRY HEALTH GROUP,35938369,"2,520.00",LEARNP,DN31 1QZ,KHU000042845
Department of Health,NHS North East Lincolnshire CCG,31/03/2021,C&M-PMS PCN DES Participation,PRC DELEGATED CO-COMMISSIONING,CHANTRY HEALTH GROUP,35938369,973.65,PARTIP,DN31 1QZ,KHU000042845
Department of Health,NHS North East Lincolnshire CCG,31/03/2021,C&M-PMS Prem Actual Rent,PRC DELEGATED CO-COMMISSIONING,CHANTRY HEALTH GROUP,35938369,"31,770.00",RENT,DN31 1QZ,KHU000042845
Department of Health,NHS North East Lincolnshire CCG,31/03/2021,C&M-PMS Prem Service Charges,PRC DELEGATED CO-COMMISSIONING,CHANTRY HEALTH GROUP,35938369,"5,300.00",PREMSP,DN31 1QZ,KHU000042845
Department of Health,NHS North East Lincolnshire CCG,31/03/2021,C&M-PMS QOF Aspiration,PRC DELEGATED CO-COMMISSIONING,CHANTRY HEALTH GROUP,35938369,"5,570.92",QUASPP,DN31 1QZ,KHU000042845
Department of Health,NHS North East Lincolnshire CCG,31/03/2021,C&M-PMS Contract Value,PRC DELEGATED CO-COMMISSIONING,DR OZ QURESHI,35938371,"33,169.26",BABALP,DN35 0LN,KHU000042847
Department of Health,NHS North East Lincolnshire CCG,31/03/2021,C&M-PMS List Size Adjustment,PRC DELEGATED CO-COMMISSIONING,DR OZ QURESHI,35938371,779.38,LISTAP,DN35 0LN,KHU000042847
Department of Health,NHS North East Lincolnshire CCG,31/03/2021,C&M-PMS PCN DES Participation,PRC DELEGATED CO-COMMISSIONING,DR OZ QURESHI,35938371,626.05,PARTIP,DN35 0LN,KHU000042847
Department of Health,NHS North East Lincolnshire CCG,31/03/2021,C&M-PMS Prem Actual Rent,PRC DELEGATED CO-COMMISSIONING,DR OZ QURESHI,35938371,"16,575.00",RENT,DN35 0LN,KHU000042847
Department of Health,NHS North East Lincolnshire CCG,31/03/2021,C&M-PMS QOF Aspiration,PRC DELEGATED CO-COMMISSIONING,DR OZ QURESHI,35938371,"3,736.33",QUASPP,DN35 0LN,KHU000042847
Department of Health,NHS North East Lincolnshire CCG,31/03/2021,C&M-PMS Contract Value,PRC DELEGATED CO-COMMISSIONING,CCL-SOLUTIONS LTD,35938373,"19,106.81",BABALP,DN31 2BH,KHU000042849
Department of Health,NHS North East Lincolnshire CCG,31/03/2021,C&M-PMS List Size Adjustment,PRC DELEGATED CO-COMMISSIONING,CCL-SOLUTIONS LTD,35938373,199.23,LISTAP,DN31 2BH,KHU000042849
Department of Health,NHS North East Lincolnshire CCG,31/03/2021,C&M-PMS PCN DES Participation,PRC DELEGATED CO-COMMISSIONING,CCL-SOLUTIONS LTD,35938373,360.63,PARTIP,DN31 2BH,KHU000042849
Department of Health,NHS North East Lincolnshire CCG,31/03/2021,C&M-PMS Prem Actual Rent,PRC DELEGATED CO-COMMISSIONING,CCL-SOLUTIONS LTD,35938373,"33,853.50",RENT,DN31 2BH,KHU000042849
Department of Health,NHS North East Lincolnshire CCG,31/03/2021,C&M-PMS QOF Aspiration,PRC DELEGATED CO-COMMISSIONING,CCL-SOLUTIONS LTD,35938373,"1,799.10",QUASPP,DN31 2BH,KHU000042849
Department of Health,NHS North East Lincolnshire CCG,31/03/2021,C&M-PMS Contract Value,PRC DELEGATED CO-COMMISSIONING,HEALING PARTNERSHIP,35938375,"16,524.35",BABALP,DN417JB,KHU000042851
Department of Health,NHS North East Lincolnshire CCG,31/03/2021,C&M-PMS DES Learn Dsblty Hlth Chk,PRC DELEGATED CO-COMMISSIONING,HEALING PARTNERSHIP,35938375,280.00,LEARNP,DN417JB,KHU000042851
Department of Health,NHS North East Lincolnshire CCG,31/03/2021,C&M-PMS List Size Adjustment,PRC DELEGATED CO-COMMISSIONING,HEALING PARTNERSHIP,35938375,483.27,LISTAP,DN417JB,KHU000042851
Department of Health,NHS North East Lincolnshire CCG,31/03/2021,C&M-PMS PCN DES Participation,PRC DELEGATED CO-COMMISSIONING,HEALING PARTNERSHIP,35938375,311.89,PARTIP,DN417JB,KHU000042851
Department of Health,NHS North East Lincolnshire CCG,31/03/2021,C&M-PMS Prem Actual Rent,PRC DELEGATED CO-COMMISSIONING,HEALING PARTNERSHIP,35938375,"20,115.00",RENT,DN417JB,KHU000042851
Department of Health,NHS North East Lincolnshire CCG,31/03/2021,C&M-PMS QOF Aspiration,PRC DELEGATED CO-COMMISSIONING,HEALING PARTNERSHIP,35938375,"1,796.91",QUASPP,DN417JB,KHU000042851
Department of Health,NHS North East Lincolnshire CCG,31/03/2021,C&M-PMS Contract Value,PRC DELEGATED CO-COMMISSIONING,LYNTON PRACTICE LTD,35938377,"35,551.87",BABALP,DN35 0LN,KHU000042853
Department of Health,NHS North East Lincolnshire CCG,31/03/2021,C&M-PMS List Size Adjustment,PRC DELEGATED CO-COMMISSIONING,LYNTON PRACTICE LTD,35938377,755.00,LISTAP,DN35 0LN,KHU000042853
Department of Health,NHS North East Lincolnshire CCG,31/03/2021,C&M-PMS PCN DES Participation,PRC DELEGATED CO-COMMISSIONING,LYNTON PRACTICE LTD,35938377,671.02,PARTIP,DN35 0LN,KHU000042853
Department of Health,NHS North East Lincolnshire CCG,31/03/2021,C&M-PMS PCO Other,PRC DELEGATED CO-COMMISSIONING,LYNTON PRACTICE LTD,35938377,"2,880.00",CQCRP,DN35 0LN,KHU000042853
Department of Health,NHS North East Lincolnshire CCG,31/03/2021,C&M-PMS Prem Actual Rent,PRC DELEGATED CO-COMMISSIONING,LYNTON PRACTICE LTD,35938377,"16,575.00",RENT,DN35 0LN,KHU000042853
Department of Health,NHS North East Lincolnshire CCG,31/03/2021,C&M-PMS QOF Aspiration,PRC DELEGATED CO-COMMISSIONING,LYNTON PRACTICE LTD,35938377,"3,888.62",QUASPP,DN35 0LN,KHU000042853
Department of Health,NHS North East Lincolnshire CCG,31/03/2021,C&M-PMS Contract Value,PRC DELEGATED CO-COMMISSIONING,SCARTHO MEDICAL CENTRE,35938379,"106,103.97",BABALP,DN33 3JF,KHU000042855
Department of Health,NHS North East Lincolnshire CCG,31/03/2021,C&M-PMS DES Learn Dsblty Hlth Chk,PRC DELEGATED CO-COMMISSIONING,SCARTHO MEDICAL CENTRE,35938379,280.00,LEARNP,DN33 3JF,KHU000042855
Department of Health,NHS North East Lincolnshire CCG,31/03/2021,C&M-PMS PCN DES Participation,PRC DELEGATED CO-COMMISSIONING,SCARTHO MEDICAL CENTRE,35938379,"2,002.65",PARTIP,DN33 3JF,KHU000042855
Department of Health,NHS North East Lincolnshire CCG,31/03/2021,C&M-PMS Prem Actual Rent,PRC DELEGATED CO-COMMISSIONING,SCARTHO MEDICAL CENTRE,35938379,"115,950.00",RENT,DN33 3JF,KHU000042855
Department of Health,NHS North East Lincolnshire CCG,31/03/2021,C&M-PMS QOF Aspiration,PRC DELEGATED CO-COMMISSIONING,SCARTHO MEDICAL CENTRE,35938379,"12,106.48",QUASPP,DN33 3JF,KHU000042855
Department of Health,NHS North East Lincolnshire CCG,31/03/2021,C&M-PMS Contract Value,PRC DELEGATED CO-COMMISSIONING,GREENLAND SURGERY,35938381,"21,808.89",BABALP,DN31 3AE,KHU000042857
Department of Health,NHS North East Lincolnshire CCG,31/03/2021,C&M-PMS DES Learn Dsblty Hlth Chk,PRC DELEGATED CO-COMMISSIONING,GREENLAND SURGERY,35938381,280.00,LEARNP,DN31 3AE,KHU000042857
Department of Health,NHS North East Lincolnshire CCG,31/03/2021,C&M-PMS List Size Adjustment,PRC DELEGATED CO-COMMISSIONING,GREENLAND SURGERY,35938381,290.97,LISTAP,DN31 3AE,KHU000042857
Department of Health,NHS North East Lincolnshire CCG,31/03/2021,C&M-PMS PCN DES Participation,PRC DELEGATED CO-COMMISSIONING,GREENLAND SURGERY,35938381,411.63,PARTIP,DN31 3AE,KHU000042857
Department of Health,NHS North East Lincolnshire CCG,31/03/2021,C&M-PMS Prem Actual Rent,PRC DELEGATED CO-COMMISSIONING,GREENLAND SURGERY,35938381,"18,849.76",RENT,DN31 3AE,KHU000042857
Department of Health,NHS North East Lincolnshire CCG,31/03/2021,C&M-PMS Prem Service Charges,PRC DELEGATED CO-COMMISSIONING,GREENLAND SURGERY,35938381,500.00,PREMSP,DN31 3AE,KHU000042857
Department of Health,NHS North East Lincolnshire CCG,31/03/2021,C&M-PMS QOF Aspiration,PRC DELEGATED CO-COMMISSIONING,GREENLAND SURGERY,35938381,"1,986.58",QUASPP,DN31 3AE,KHU000042857
Department of Health,NHS North East Lincolnshire CCG,31/03/2021,C&M-PMS Contract Value,PRC DELEGATED CO-COMMISSIONING,WOODFORD MEDICAL CENTRE,35938385,"77,310.42",BABALP,DN34 4GB,KHU000042861
Department of Health,NHS North East Lincolnshire CCG,31/03/2021,C&M-PMS List Size Adjustment,PRC DELEGATED CO-COMMISSIONING,WOODFORD MEDICAL CENTRE,35938385,502.04,LISTAP,DN34 4GB,KHU000042861
Department of Health,NHS North East Lincolnshire CCG,31/03/2021,C&M-PMS PCN DES Participation,PRC DELEGATED CO-COMMISSIONING,WOODFORD MEDICAL CENTRE,35938385,"1,459.19",PARTIP,DN34 4GB,KHU000042861
Department of Health,NHS North East Lincolnshire CCG,31/03/2021,C&M-PMS Prem Actual Rent,PRC DELEGATED CO-COMMISSIONING,WOODFORD MEDICAL CENTRE,35938385,"38,396.40",RENT,DN34 4GB,KHU000042861
Department of Health,NHS North East Lincolnshire CCG,31/03/2021,C&M-PMS QOF Aspiration,PRC DELEGATED CO-COMMISSIONING,WOODFORD MEDICAL CENTRE,35938385,"7,718.61",QUASPP,DN34 4GB,KHU000042861
Department of Health,NHS North East Lincolnshire CCG,31/03/2021,C&M-PMS Contract Value,PRC DELEGATED CO-COMMISSIONING,BIRKWOOD MEDICAL CENTRE,35938387,"68,730.32",BABALP,DN34 5DX,KHU000042863
Department of Health,NHS North East Lincolnshire CCG,31/03/2021,C&M-PMS PCN DES Participation,PRC DELEGATED CO-COMMISSIONING,BIRKWOOD MEDICAL CENTRE,35938387,"1,297.24",PARTIP,DN34 5DX,KHU000042863
Department of Health,NHS North East Lincolnshire CCG,31/03/2021,C&M-PMS PCO Other,PRC DELEGATED CO-COMMISSIONING,BIRKWOOD MEDICAL CENTRE,35938387,"5,483.00",CQCRP,DN34 5DX,KHU000042863
Department of Health,NHS North East Lincolnshire CCG,31/03/2021,C&M-PMS Prem Actual Rent,PRC DELEGATED CO-COMMISSIONING,BIRKWOOD MEDICAL CENTRE,35938387,"95,490.00",RENT,DN34 5DX,KHU000042863
Department of Health,NHS North East Lincolnshire CCG,31/03/2021,C&M-PMS QOF Aspiration,PRC DELEGATED CO-COMMISSIONING,BIRKWOOD MEDICAL CENTRE,35938387,"5,932.97",QUASPP,DN34 5DX,KHU000042863
Department of Health,NHS North East Lincolnshire CCG,31/03/2021,C&M-PMS Contract Value,PRC DELEGATED CO-COMMISSIONING,PELHAM MEDICAL CENTRE,35938389,"77,056.06",BABALP,DN31 1QZ,KHU000042865
Department of Health,NHS North East Lincolnshire CCG,31/03/2021,C&M-PMS List Size Adjustment,PRC DELEGATED CO-COMMISSIONING,PELHAM MEDICAL CENTRE,35938389,79.60,LISTAP,DN31 1QZ,KHU000042865
Department of Health,NHS North East Lincolnshire CCG,31/03/2021,C&M-PMS PCN DES Participation,PRC DELEGATED CO-COMMISSIONING,PELHAM MEDICAL CENTRE,35938389,"1,454.39",PARTIP,DN31 1QZ,KHU000042865
Department of Health,NHS North East Lincolnshire CCG,31/03/2021,C&M-PMS PCO Doctors Ret Scheme,PRC DELEGATED CO-COMMISSIONING,PELHAM MEDICAL CENTRE,35938389,"2,666.56",GPRET,DN31 1QZ,KHU000042865
Department of Health,NHS North East Lincolnshire CCG,31/03/2021,C&M-PMS Prem Actual Rent,PRC DELEGATED CO-COMMISSIONING,PELHAM MEDICAL CENTRE,35938389,"31,770.00",RENT,DN31 1QZ,KHU000042865
Department of Health,NHS North East Lincolnshire CCG,31/03/2021,C&M-PMS Prem Rates,PRC DELEGATED CO-COMMISSIONING,PELHAM MEDICAL CENTRE,35938389,"1,306.00",RANDRP,DN31 1QZ,KHU000042865
Department of Health,NHS North East Lincolnshire CCG,31/03/2021,C&M-PMS QOF Aspiration,PRC DELEGATED CO-COMMISSIONING,PELHAM MEDICAL CENTRE,35938389,"7,787.74",QUASPP,DN31 1QZ,KHU000042865
Department of Health,NHS North East Lincolnshire CCG,31/03/2021,ME - PMS TPS Added Years Adj EEs,PRC DELEGATED CO-COMMISSIONING,PELHAM MEDICAL CENTRE,35938389,"1,058.07",URLS,DN31 1QZ,KHU000042865
Department of Health,NHS North East Lincolnshire CCG,31/03/2021,Clinical&Medical-Independent Sector,OUT OF HOURS,CORE CARE LINKS,35943795,"111,217.85",https://nww.einvoice-prod.sbs.nhs.uk:8179/invoicepdf/35f7885c-6d43-5c53-b3a3-0cd3dadbe495,DN34 5LP,1210
Department of Health,NHS North East Lincolnshire CCG,31/03/2021,Clinical&Medical-Independent Sector,OUT OF HOURS,CORE CARE LINKS,35943795,"9,052.25",,DN34 5LP,1210
Department of Health,NHS North East Lincolnshire CCG,31/03/2021,Clinical&Medical-Independent Sector,COMMUNITY SERVICES,YARBOROUGH CLEE CARE LTD,35943821,"110,905.00",https://nww.einvoice-prod.sbs.nhs.uk:8179/invoicepdf/ee95beda-1448-52be-9c6c-e4b25e6a247c,DN34 4GB,1960
Department of Health,NHS North East Lincolnshire CCG,31/03/2021,Clinical&Medical-Clinical Other,PRC DELEGATED CO-COMMISSIONING,NAVIGO,35943838,"3,750.00",,DN32 0QE,SALINV6162
Department of Health,NHS North East Lincolnshire CCG,31/03/2021,Clinical&Medical-Not For Profit,MENTAL HEALTH CONTRACTS,NAVIGO,35943838,"2,266,114.00",https://nww.einvoice-prod.sbs.nhs.uk:8179/invoicepdf/fe21d6e2-a026-501b-a7eb-d134d80d77b3,DN32 0QE,SALINV6162
Department of Health,NHS North East Lincolnshire CCG,31/03/2021,Clinical&Medical-Not For Profit,MENTAL HEALTH CONTRACTS,NAVIGO,35943838,"6,533.00",,DN32 0QE,SALINV6162
Department of Health,NHS North East Lincolnshire CCG,31/03/2021,Soc Care-Other Soc Care,ASC SLA/CONTRACTS,NAVIGO,35943838,"260,573.00",,DN32 0QE,SALINV6162
Department of Health,NHS North East Lincolnshire CCG,31/03/2021,Clinical&Medical-Commercial Sector,URGENT CARE,NORTHERN DOCTORS URGENT CARE,35943851,"48,750.00",https://nww.einvoice-prod.sbs.nhs.uk:8179/invoicepdf/3273a627-33c9-52e5-a9c1-ef3d7d28d689,NE12 8EW,ARIN2600011788
Department of Health,NHS North East Lincolnshire CCG,31/03/2021,Clinical&Medical-Othe Public Sector,CHILD AND ADOLESCENT MENTAL HEALTH,NORTH EAST LINCOLNSHIRE COUNCIL,35943866,"278,666.00",,DN31 1HU,S1797137
Department of Health,NHS North East Lincolnshire CCG,31/03/2021,Clinical&Medical-Othe Public Sector,CHILDREN AND YOUNG PERSONS PALLIATIVE CARE,NORTH EAST LINCOLNSHIRE COUNCIL,35943866,"3,688.00",,DN31 1HU,S1797137
Department of Health,NHS North East Lincolnshire CCG,31/03/2021,Clinical&Medical-Othe Public Sector,COMMISSIONING - NON ACUTE,NORTH EAST LINCOLNSHIRE COUNCIL,35943866,"52,993.00",,DN31 1HU,S1797137
Department of Health,NHS North East Lincolnshire CCG,31/03/2021,Clinical&Medical-Clinical Other,PRC DELEGATED CO-COMMISSIONING,CARE PLUS GROUP LTD,35943893,"18,333.00",,DN32 7DH,16281
Department of Health,NHS North East Lincolnshire CCG,31/03/2021,Clinical&Medical-Independent Sector,COMMUNITY SERVICES,CARE PLUS GROUP LTD,35943893,"29,166.00",,DN32 7DH,16281
Department of Health,NHS North East Lincolnshire CCG,31/03/2021,Clinical&Medical-Not For Profit,COMMUNITY SERVICES,CARE PLUS GROUP LTD,35943893,"872,348.00",https://nww.einvoice-prod.sbs.nhs.uk:8179/invoicepdf/88626960-af68-532b-b02c-7f35cdf53edc,DN32 7DH,16281
Department of Health,NHS North East Lincolnshire CCG,31/03/2021,Clinical&Medical-Not For Profit,COMMUNITY SERVICES,CARE PLUS GROUP LTD,35943893,"537,402.00",,DN32 7DH,16281
Department of Health,NHS North East Lincolnshire CCG,31/03/2021,Soc Care-Other Soc Care,ASC SLA/CONTRACTS,CARE PLUS GROUP LTD,35943893,"283,731.00",,DN32 7DH,16281
Department of Health,NHS North East Lincolnshire CCG,31/03/2021,Clinical&Medical-Commercial Sector,PLANNED CARE,VIRGIN CARE EAST RIDING LLP,35943921,"86,043.00",,W4A 4GE,301189281
Department of Health,NHS North East Lincolnshire CCG,31/03/2021,Clinical&Medical-Commercial Sector,PLANNED CARE,360 CARE LTD,35943947,"38,556.00",,DN31 2BH,36169
Department of Health,NHS North East Lincolnshire CCG,31/03/2021,LPF Management Fees,PRIMARY CARE IT,N3I LTD,35944049,"45,604.00",https://nww.einvoice-prod.sbs.nhs.uk:8179/invoicepdf/f088695c-ac77-5c8c-b07c-c119db70deae,HU3 4AE,388
Department of Health,NHS North East Lincolnshire CCG,31/03/2021,Clinical&Medical-Commercial Sector,ASC PRIORITY 3 AND 4 SERVICES,RETHINK,35962815,"1,121.42",http://nww.docserv.wyss.nhs.uk/synergyiim/dist/?val=3601409_14269531_20210301144447,DY4 7UF,24843
Department of Health,NHS North East Lincolnshire CCG,31/03/2021,Clinical&Medical-Commercial Sector,ASC PRIORITY 3 AND 4 SERVICES,RETHINK,35962815,"5,607.08",,DY4 7UF,24843
Department of Health,NHS North East Lincolnshire CCG,31/03/2021,Clinical&Medical-Voluntary Sector,MENTAL HEALTH SERVICES - ADVOCACY,RETHINK,35962815,"2,978.58",http://nww.docserv.wyss.nhs.uk/synergyiim/dist/?val=3601409_14269531_20210301144447,DY4 7UF,24843
Department of Health,NHS North East Lincolnshire CCG,31/03/2021,Clinical&Medical-Voluntary Sector,MENTAL HEALTH SERVICES - ADVOCACY,RETHINK,35962815,"14,892.92",,DY4 7UF,24843
Department of Health,NHS North East Lincolnshire CCG,31/03/2021,Social Care-Res Short Stay Exp,ASC MENTAL HEALTH RESIDENTIAL,RETHINK,35962815,116.67,http://nww.docserv.wyss.nhs.uk/synergyiim/dist/?val=3601409_14269531_20210301144447,DY4 7UF,24843
Department of Health,NHS North East Lincolnshire CCG,31/03/2021,Social Care-Res Short Stay Exp,ASC MENTAL HEALTH RESIDENTIAL,RETHINK,35962815,583.33,,DY4 7UF,24843
Department of Health,NHS North East Lincolnshire CCG,31/03/2021,Hcare Srv Rec NHS Trust-Contract Baseline,ACUTE COMMISSIONING,LEEDS TEACHING HOSPITALS NHS TRUST,35970540,"100,000.00",Leeds Teaching Hospitals NHS Trust SLA Mar 21 2ND,LS9 7TF,BPAYMAR211
Department of Health,NHS North East Lincolnshire CCG,31/03/2021,Hcare Srv Rec NHS Trust-Contract Baseline,ACUTE COMMISSIONING,HULL UNIVERSITY TEACHING HOSPITAL NHS TRUST,35970541,"103,000.00",Hull University Teaching Hospitals NHS Trust SLA Mar 21 2ND,BB3 0FG,BPAYMAR212
Department of Health,NHS North East Lincolnshire CCG,31/03/2021,C&M-GP PRACTICE REVENUE - PCTF,GP FORWARD VIEW,DR R MATHEWS,35970544,"46,913.50",Panacea (Paying Dr Mathews) Extended Access 2020/21 Monthly Monies M12,DN313AE,EXTACC21M12C
Department of Health,NHS North East Lincolnshire CCG,31/03/2021,C&M-PMS LES LTC Case Management,LOCAL ENHANCED SERVICES,HUMBERVIEW SURGERY,35971318,"32,498.05",Freshney Pelham (Paying Humberview) Enhanced Primary Care Condition Monies Mar21,DN313AE,MAR21EPC1
Department of Health,NHS North East Lincolnshire CCG,31/03/2021,C&M-PMS LES LTC Case Management,LOCAL ENHANCED SERVICES,ROXTON PRACTICE,35971332,"30,974.30",Meridian (Paying Roxton) Enhanced Primary Care Condition Monies Mar21,DN40 1JW,MAR21EPC2
Department of Health,NHS North East Lincolnshire CCG,31/03/2021,C&M-PMS LES LTC Case Management,LOCAL ENHANCED SERVICES,DR R MATHEWS,35971342,"77,954.60",Panacea (Paying Dr Mathews) Enhanced Primary Care Condition Monies Mar21,DN313AE,MAR21EPC3
Department of Health,NHS North East Lincolnshire CCG,31/03/2021,C&M-GP PRACTICE REVENUE - PCTF,GP FORWARD VIEW,HUMBERVIEW SURGERY,35991643,"28,838.11",Freshney Pelham (Paying Humberview) Organisational Development Funding 20/21,DN313AE,ODMAR21FP
Department of Health,NHS North East Lincolnshire CCG,31/03/2021,C&M-GP PRACTICE REVENUE - PCTF,GP FORWARD VIEW,ROXTON PRACTICE,35991644,"28,772.06",Meridian (Paying Roxton) Organisational Development Funding 20/21,DN40 1JW,ODMAR21MER
Department of Health,NHS North East Lincolnshire CCG,31/03/2021,C&M-GP PRACTICE REVENUE - PCTF,GP FORWARD VIEW,DR R MATHEWS,35991645,"70,440.69",Panacea (Paying Dr Mathews) Organisational Development Funding 20/21,DN313AE,ODMAR21PAN
Department of Health,NHS North East Lincolnshire CCG,31/03/2021,C&M-GP PRACTICE REVENUE - PCTF,GP FORWARD VIEW,DR R MATHEWS,35991648,"39,037.91",Panacea (Paying Dr Mathews) Transformation Funding 20/21,DN313AE,TFMAR21PAN
Department of Health,NHS North East Lincolnshire CCG,31/03/2021,Clinical&Medical-Independent Sector,ACUTE COMMISSIONING,NEW MEDICAL SYSTEMS LTD,36001718,"95,949.84",https://nww.einvoice-prod.sbs.nhs.uk:8179/invoicepdf/feaab2f6-b7c5-50c9-afc5-1cd260f3d630,SE1 6ES,000004089
Department of Health,NHS North East Lincolnshire CCG,31/03/2021,Computer Software/License,ASC COMMUNITY CONTRACTS,OXFORD COMPUTER CONSULTANTS LTD,36001735,"38,051.71",,OX1 2EP,16664
Department of Health,NHS North East Lincolnshire CCG,31/03/2021,Clinical&Medical-Commercial Sector,ASC CARERS SERVICES,CARERS SUPPORT CENTRE,36001738,"32,145.83",,DN20 8AU,NELY2MTH112021
Department of Health,NHS North East Lincolnshire CCG,31/03/2021,Clinical&Medical-Commercial Sector,ASC CARERS SERVICES,CARERS SUPPORT CENTRE,36001741,"32,145.83",,DN20 8AU,NELY2MTH122021
Department of Health,NHS North East Lincolnshire CCG,31/03/2021,Hcare Srv Rec Fdtn Trust-Contract Baseline,ACUTE COMMISSIONING,NORTHERN LINCOLNSHIRE AND GOOLE HOSPITALS NHS FOUNDATION TRUST,36048564,"83,368.00",WIP & Maternity Mar 21,DN33 2BA,MATWIPMAR21
Department of Health,NHS North East Lincolnshire CCG,31/03/2021,Clinical&Medical-Independent Sector,OUT OF HOURS,CORE CARE LINKS,36061114,"120,270.10",https://nww.einvoice-prod.sbs.nhs.uk:8179/invoicepdf/6a791b5c-b340-5d31-9868-aa1b0bb17f15,DN34 5LP,1213
Department of Health,NHS North East Lincolnshire CCG,31/03/2021,C&M-GP PRACTICE REVENUE - PCTF,GP FORWARD VIEW,N3I LTD,36061145,"108,000.00",,HU3 4AE,397
Department of Health,NHS North East Lincolnshire CCG,31/03/2021,Clinical&Medical-Not For Profit,COMMUNITY SERVICES,CARE PLUS GROUP LTD,36061150,"150,000.00",https://nww.einvoice-prod.sbs.nhs.uk:8179/invoicepdf/63132254-c0bc-51b7-ba5a-d63a812e82bc,DN32 7DH,16300
Department of Health,NHS North East Lincolnshire CCG,31/03/2021,Clinical&Medical-Independent Sector,OUT OF HOURS,CORE CARE LINKS,36061163,"-120,270.10",https://nww.einvoice-prod.sbs.nhs.uk:8179/invoicepdf/dd6f5a77-6948-5ff6-868f-0a3946bc2331,DN34 5LP,1213CR
Department of Health,NHS North East Lincolnshire CCG,31/03/2021,Clinical&Medical-Commercial Sector,URGENT CARE,VOCARE LTD,36074813,"307,786.00",https://nww.einvoice-prod.sbs.nhs.uk:8179/invoicepdf/02913ed4-d8f0-55c0-b642-4da471321524,NE12 8EW,ARIN2600011828
Department of Health,NHS North East Lincolnshire CCG,31/03/2021,Clinical&Medical-Commercial Sector,URGENT CARE,VOCARE LTD,36074848,"-48,750.00",https://nww.einvoice-prod.sbs.nhs.uk:8179/invoicepdf/8cd872e5-f179-542e-8566-5e0bd38a6bf3,NE12 8EW,ARCN2600000303
Department of Health,NHS North East Lincolnshire CCG,31/03/2021,Clinical&Medical-Not For Profit,COMMUNITY SERVICES,CARE PLUS GROUP LTD,36074855,"89,653.00",https://nww.einvoice-prod.sbs.nhs.uk:8179/invoicepdf/d621eb1e-770c-502c-b381-080a6c75fb64,DN32 7DH,16288
Department of Health,NHS North East Lincolnshire CCG,31/03/2021,Clinical&Medical-Not For Profit,MENTAL HEALTH CONTRACTS,NAVIGO,36074863,"33,409.00",https://nww.einvoice-prod.sbs.nhs.uk:8179/invoicepdf/9a7f62dd-fabd-5e57-8e65-6946060f5595,DN32 0QE,SALINV6210
Department of Health,NHS North East Lincolnshire CCG,31/03/2021,C&M-PMS Prem Actual Rent,PRC DELEGATED CO-COMMISSIONING,CARE PLUS GROUP LTD,36074870,"61,014.29",https://nww.einvoice-prod.sbs.nhs.uk:8179/invoicepdf/564e948d-359f-5694-8f6e-0b3b35c83cc8,DN32 7DH,16299
Department of Health,NHS North East Lincolnshire CCG,31/03/2021,Clinical&Medical-Not For Profit,COMMUNITY SERVICES,CARE PLUS GROUP LTD,36092153,"78,198.00",https://nww.einvoice-prod.sbs.nhs.uk:8179/invoicepdf/f0ee8104-2c24-5085-ac37-bc72f5ec445e,DN32 7DH,16283
Department of Health,NHS North East Lincolnshire CCG,31/03/2021,Clinical&Medical-Commercial Sector,ASC PRIORITY 3 AND 4 SERVICES,KEYRING LIVING SUPPORT NETWORK,36114735,"30,540.00",,SE16 2XB,0000002766
Department of Health,NHS North East Lincolnshire CCG,31/03/2021,Clinical&Medical-Not For Profit,MENTAL HEALTH CONTRACTS,NAVIGO,36132837,"135,000.00",https://nww.einvoice-prod.sbs.nhs.uk:8179/invoicepdf/d4576883-4901-51d0-b1ed-8c45c87e76c0,DN32 0QE,SALINV6218
Department of Health,NHS North East Lincolnshire CCG,31/03/2021,Clinical&Medical-Not For Profit,MENTAL HEALTH CONTRACTS,NAVIGO,36132837,"40,000.00",,DN32 0QE,SALINV6218
Department of Health,NHS North East Lincolnshire CCG,31/03/2021,GROSSRECOVEMPBEN - SALARIES & WAGES,PERFORMANCE,NAVIGO,36132837,"-9,351.00",,DN32 0QE,SALINV6218
Department of Health,NHS North East Lincolnshire CCG,31/03/2021,GROSSRECOVEMPBEN - SOCIAL SECURITY,PERFORMANCE,NAVIGO,36132837,"-1,064.00",,DN32 0QE,SALINV6218
Department of Health,NHS North East Lincolnshire CCG,31/03/2021,Recharge : Provided,SAFEGUARDING,NAVIGO,36132837,"-13,578.00",,DN32 0QE,SALINV6218
Department of Health,NHS North East Lincolnshire CCG,31/03/2021,Clinical&Medical-Othe Public Sector,CHILD AND ADOLESCENT MENTAL HEALTH,NORTH EAST LINCOLNSHIRE COUNCIL,36132857,"70,000.00",,DN31 1HU,S1805176
Department of Health,NHS North East Lincolnshire CCG,31/03/2021,Clinical&Medical-Not For Profit,MENTAL HEALTH CONTRACTS,NAVIGO,36133018,"158,455.00",https://nww.einvoice-prod.sbs.nhs.uk:8179/invoicepdf/d6f32fda-43b6-5471-9dbd-66c8220f5ca8,DN32 0QE,SALINV6223
Department of Health,NHS North East Lincolnshire CCG,31/03/2021,Amts owed byJVs&Assocs<1Yr-Oth Cont,BALANCE SHEET,NORTH EAST LINCOLNSHIRE COUNCIL,36139880,"3,796,993.00",,DN31 1HU,101087-23-MAR-2021
Department of Health,NHS North East Lincolnshire CCG,31/03/2021,C&M-GP PRACTICE REVENUE - PCTF,GP FORWARD VIEW,SYNANETICS LTD,36147469,"50,000.00",,HG4 3BS,INV00308
Department of Health,NHS North East Lincolnshire CCG,31/03/2021,Recharge : Received,PRIMARY CARE IT,N3I LTD,36147476,"127,545.60",,HU3 4AE,401
Department of Health,NHS North East Lincolnshire CCG,31/03/2021,Recharge : Received,PRIMARY CARE IT,N3I LTD,36147479,"86,487.40",,HU3 4AE,400
Department of Health,NHS North East Lincolnshire CCG,31/03/2021,Recharge : Received,PRIMARY CARE IT,N3I LTD,36147483,"394,362.00",,HU3 4AE,389
Department of Health,NHS North East Lincolnshire CCG,31/03/2021,C&M-PMS Cost of Drugs -Dispensing,LOCAL ENHANCED SERVICES,ROXTON PRACTICE,36164921,"-80,058.15",DRGREC,DN40 1JW,KHU000043020
Department of Health,NHS North East Lincolnshire CCG,31/03/2021,C&M-PMS Prsc Chrgs Cll&Rmttd by GPs,PRC DELEGATED CO-COMMISSIONING,ROXTON PRACTICE,36164921,"-4,520.10",DRGPRX,DN40 1JW,KHU000043020
Department of Health,NHS North East Lincolnshire CCG,31/03/2021,C&M-PMS Cost of Drugs -Dispensing,LOCAL ENHANCED SERVICES,ROXTON PRACTICE,36164922,"135,403.95","DRGD,DRGADV",DN40 1JW,KHU000043021
Department of Health,NHS North East Lincolnshire CCG,31/03/2021,C&M-PMS Prof fees Dispensing,PRC DELEGATED CO-COMMISSIONING,ROXTON PRACTICE,36164922,"34,458.12",DRGDPF,DN40 1JW,KHU000043021
Department of Health,NHS North East Lincolnshire CCG,31/03/2021,C&M-PMS Prsc Chrgs Cll&Rmttd by GPs,LOCAL ENHANCED SERVICES,ROXTON PRACTICE,36164922,"4,520.10",DRGPR,DN40 1JW,KHU000043021
Department of Health,NHS North East Lincolnshire CCG,31/03/2021,C&M- PCN DES Nursing Associate,PRC DELEGATED CO-COMMISSIONING,HUMBERVIEW SURGERY,36174200,"11,031.13",,DN313AE,001076
Department of Health,NHS North East Lincolnshire CCG,31/03/2021,C&M-APMS PCN DES Clin Pharmacist,PRC DELEGATED CO-COMMISSIONING,HUMBERVIEW SURGERY,36174200,"37,552.14",,DN313AE,001076
Department of Health,NHS North East Lincolnshire CCG,31/03/2021,C&M-PCN DES HEALTH AND WELLBEING COACH,PRC DELEGATED CO-COMMISSIONING,HUMBERVIEW SURGERY,36174200,"17,030.31",,DN313AE,001076
Department of Health,NHS North East Lincolnshire CCG,31/03/2021,C&M-PCN DES PHARMACY TECHNICIANS,PRC DELEGATED CO-COMMISSIONING,HUMBERVIEW SURGERY,36174200,"25,040.59",,DN313AE,001076
Department of Health,NHS North East Lincolnshire CCG,31/03/2021,Clinical&Medical-Independent Sector,COMMUNITY SERVICES,CARE PLUS GROUP LTD,36174207,"70,460.00",https://nww.einvoice-prod.sbs.nhs.uk:8179/invoicepdf/398255fa-31d0-549c-b8dc-2c1fc4be509f,DN32 7DH,16301
Department of Health,NHS North East Lincolnshire CCG,31/03/2021,Clinical&Medical-Not For Profit,COMMUNITY SERVICES,CARE PLUS GROUP LTD,36174207,"106,000.00",,DN32 7DH,16301
Department of Health,NHS North East Lincolnshire CCG,31/03/2021,GROSSRECOVEMPBEN - SALARIES & WAGES,QUALITY ASSURANCE,CARE PLUS GROUP LTD,36174207,"-10,343.00",,DN32 7DH,16301
Department of Health,NHS North East Lincolnshire CCG,31/03/2021,GROSSRECOVEMPBEN - SOCIAL SECURITY,QUALITY ASSURANCE,CARE PLUS GROUP LTD,36174207,"-1,225.00",,DN32 7DH,16301
Department of Health,NHS North East Lincolnshire CCG,31/03/2021,GROSSRECOVEMPBEN ERCONTS2NHSPENSION,QUALITY ASSURANCE,CARE PLUS GROUP LTD,36174207,"-1,486.00",,DN32 7DH,16301
Department of Health,NHS North East Lincolnshire CCG,31/03/2021,Computer Network Costs,PRIMARY CARE IT,VIRGIN MEDIA BUSINESS LTD,36174265,"89,268.44",,BN13 1XP,939660058
Department of Health,NHS North East Lincolnshire CCG,31/03/2021,C&M-PMS Prem Actual Rent,PRC DELEGATED CO-COMMISSIONING,NAVIGO,36174278,"39,578.72",https://nww.einvoice-prod.sbs.nhs.uk:8179/invoicepdf/037bfe6a-5549-58be-82f3-778a4849679f,DN32 0QE,SALINV6219
Department of Health,NHS North East Lincolnshire CCG,31/03/2021,Computer Software/License,PRESCRIBING,FIRST DATABANK EUROPE LTD,36174291,"60,382.48",,EX1 3LH,2008200685003
Department of Health,NHS North East Lincolnshire CCG,31/03/2021,C&M-PMS Prem Actual Rent,PRC DELEGATED CO-COMMISSIONING,NAVIGO,36174316,"-39,578.72",https://nww.einvoice-prod.sbs.nhs.uk:8179/invoicepdf/8b1c4789-8ae2-52b7-bf8e-425f5e674193,DN32 0QE,SALCRM594
Department of Health,NHS North East Lincolnshire CCG,31/03/2021,C&M-PMS Prem Actual Rent,PRC DELEGATED CO-COMMISSIONING,NAVIGO,36174340,"35,698.50",https://nww.einvoice-prod.sbs.nhs.uk:8179/invoicepdf/6b44702c-7571-51cc-a48b-a7faca1f6fb9,DN32 0QE,SALINV6227
Department of Health,NHS North East Lincolnshire CCG,31/03/2021,Recharge : Provided,RECHARGES NHS PROPERTY SERVICES LTD,NAVIGO,36174340,"3,880.22",,DN32 0QE,SALINV6227
Department of Health,NHS North East Lincolnshire CCG,31/03/2021,Contr Estate Management,COMMISSIONING SCHEMES,ROXTON PRACTICE,36179665,"102,974.00",Meridian (Paying Roxton) Residual Funding Schemes Mar21,DN40 1JW,UNDFUND2021A
Department of Health,NHS North East Lincolnshire CCG,31/03/2021,Contr Estate Management,COMMISSIONING SCHEMES,DR R MATHEWS,36179675,"74,153.00",Panacea (Paying Dr Mathews) Residual Funding Schemes Mar21,DN313AE,UNDFUND2021B
Department of Health,NHS North East Lincolnshire CCG,31/03/2021,Clinical&Medical-Not For Profit,MENTAL HEALTH CONTRACTS,NAVIGO,36192408,"852,000.00",https://nww.einvoice-prod.sbs.nhs.uk:8179/invoicepdf/cb75baf1-37c5-5345-a604-12d8ffe015e8,DN32 0QE,SALINV6230
Department of Health,NHS North East Lincolnshire CCG,31/03/2021,Hcare Srv Rec Fdtn Trust-Contract Baseline,ACUTE COMMISSIONING,NORTHERN LINCOLNSHIRE AND GOOLE HOSPITALS NHS FOUNDATION TRUST,36206883,"34,563.07",,DN33 2BA,2400025076
Department of Health,NHS North East Lincolnshire CCG,31/03/2021,Hcare Srv Rec Fdtn Trust-Contract Baseline,ACUTE COMMISSIONING,NORTHERN LINCOLNSHIRE AND GOOLE HOSPITALS NHS FOUNDATION TRUST,36212701,"-118,748.38",https://nww.einvoice-prod.sbs.nhs.uk:8179/invoicepdf/6274899c-db5e-515b-845d-9db36fd16630,DN33 2BA,2500003555
